[Event "*** Titled Tuesday 3|2 Blitz"]
[Site "Chess.com"]
[Date "2015.08.04"]
[Round "2"]
[White "kesarev"]
[Black "hellokostya"]
[Result "1-0"]
[WhiteElo "2191"]
[BlackElo "2211"]
[TimeControl "180+2"]
[EndTime "11:51:43 PDT"]
[Termination "kesarev won by checkmate"]

1. Nf3 {[%clk 0:03:01.9]} 1... c5 {[%clk 0:02:58.8]} 2. c4 {[%clk 0:03:01.7]}
2... g6 {[%clk 0:02:58.6]} 3. g3 {[%clk 0:03:02.5]} 3... Bg7 {[%clk 0:02:59.8]}
4. Bg2 {[%clk 0:03:04.4]} 4... Nc6 {[%clk 0:03:01]} 5. O-O {[%clk 0:03:05.5]}
5... d6 {[%clk 0:03:02.1]} 6. Nc3 {[%clk 0:03:06.1]} 6... e5 {[%clk 0:03:03.4]}
7. Rb1 {[%clk 0:03:04.9]} 7... Be6 {[%clk 0:03:03.9]} 8. a3 {[%clk 0:03:05.4]}
8... Bxc4 {[%clk 0:03:00.7]} 9. b4 {[%clk 0:03:02.2]} 9... cxb4 {[%clk
0:03:00.5]} 10. axb4 {[%clk 0:03:02.9]} 10... Nf6 {[%clk 0:02:59.3]} 11. b5
{[%clk 0:03:01.7]} 11... Ne7 {[%clk 0:02:59.1]} 12. b6 {[%clk 0:02:58.7]} 12...
axb6 {[%clk 0:02:54.9]} 13. d3 {[%clk 0:02:54.5]} 13... Be6 {[%clk 0:02:48.1]}
14. Ng5 {[%clk 0:02:54.2]} 14... Bc8 {[%clk 0:02:44.7]} 15. Qb3 {[%clk 0:02:50]}
15... O-O {[%clk 0:02:42.7]} 16. Be3 {[%clk 0:02:43.2]} 16... Nd7 {[%clk
0:02:38.5]} 17. Bxb6 {[%clk 0:02:05.9]} 17... Nxb6 {[%clk 0:02:24.5]} 18. Qxb6
{[%clk 0:02:07.8]} 18... Qxb6 {[%clk 0:02:24.6]} 19. Rxb6 {[%clk 0:02:08.2]}
19... h6 {[%clk 0:02:26.5]} 20. Nge4 {[%clk 0:01:49.4]} 20... d5 {[%clk
0:01:44.5]} 21. Nc5 {[%clk 0:01:40.7]} 21... d4 {[%clk 0:01:45.2]} 22. Nb5
{[%clk 0:01:39.9]} 22... Ra2 {[%clk 0:01:37.2]} 23. Re1 {[%clk 0:01:22.9]} 23...
Bg4 {[%clk 0:01:11.4]} 24. Rxb7 {[%clk 0:01:13.8]} 24... Nc8 {[%clk 0:01:05.3]}
25. Bd5 {[%clk 0:01:06]} 25... Rxe2 {[%clk 0:01:00.1]} 26. Rxe2 {[%clk
0:01:00.5]} 26... Bxe2 {[%clk 0:01:02]} 27. f3 {[%clk 0:00:29.2]} 27... Bd1
{[%clk 0:00:38.3]} 28. Kf2 {[%clk 0:00:29.9]} 28... Bc2 {[%clk 0:00:23.7]} 29.
Ke2 {[%clk 0:00:29.9]} 29... Ne7 {[%clk 0:00:19.5]} 30. Rxe7 {[%clk 0:00:28.2]}
30... Rb8 {[%clk 0:00:20.4]} 31. Bxf7+ {[%clk 0:00:16.5]} 31... Kh7 {[%clk
0:00:19.8]} 32. Nd6 {[%clk 0:00:14.4]} 32... Bf8 {[%clk 0:00:19.4]} 33. Rd7
{[%clk 0:00:09.9]} 33... Kh8 {[%clk 0:00:17.8]} 34. Bxg6 {[%clk 0:00:08.3]}
34... Rb2 {[%clk 0:00:15.5]} 35. Nf7+ {[%clk 0:00:06.2]} 35... Kg7 {[%clk
0:00:15.9]} 36. Nxe5+ {[%clk 0:00:07]} 36... Kf6 {[%clk 0:00:16.3]} 37. f4
{[%clk 0:00:06.1]} 37... Ba4+ {[%clk 0:00:15.3]} 38. Kf3 {[%clk 0:00:07.3]}
38... Bxd7 {[%clk 0:00:16.5]} 39. Ncxd7+ {[%clk 0:00:05.4]} 39... Ke7 {[%clk
0:00:17.7]} 40. f5 {[%clk 0:00:06.8]} 40... Bg7 {[%clk 0:00:18.3]} 41. Ke4
{[%clk 0:00:07.3]} 41... Re2+ {[%clk 0:00:18.6]} 42. Kxd4 {[%clk 0:00:08.5]}
42... Re1 {[%clk 0:00:19.6]} 43. Kd5 {[%clk 0:00:09.4]} 43... Rf1 {[%clk
0:00:17.8]} 44. d4 {[%clk 0:00:09.9]} 44... Rd1 {[%clk 0:00:18.5]} 45. h4 {[%clk
0:00:10]} 45... Rd2 {[%clk 0:00:19.6]} 46. g4 {[%clk 0:00:10.7]} 46... Ra2
{[%clk 0:00:20.7]} 47. g5 {[%clk 0:00:11.6]} 47... hxg5 {[%clk 0:00:22.6]} 48.
hxg5 {[%clk 0:00:12.8]} 48... Ra5+ {[%clk 0:00:24.5]} 49. Ke4 {[%clk 0:00:13.8]}
49... Ra1 {[%clk 0:00:25.2]} 50. f6+ {[%clk 0:00:14.8]} 50... Bxf6 {[%clk
0:00:25.6]} 51. gxf6+ {[%clk 0:00:16]} 51... Kd6 {[%clk 0:00:27.5]} 52. f7
{[%clk 0:00:16.2]} 52... Re1+ {[%clk 0:00:29.4]} 53. Kf5 {[%clk 0:00:17.3]}
53... Rf1+ {[%clk 0:00:30.6]} 54. Kg5 {[%clk 0:00:18.2]} 54... Rg1+ {[%clk
0:00:31.9]} 55. Kh6 {[%clk 0:00:19.3]} 55... Rh1+ {[%clk 0:00:33.2]} 56. Kg7
{[%clk 0:00:20.5]} 56... Kc7 {[%clk 0:00:34.3]} 57. f8=Q {[%clk 0:00:20.9]}
57... Rb1 {[%clk 0:00:32.8]} 58. Qc5+ {[%clk 0:00:21.3]} 58... Kd8 {[%clk
0:00:33.8]} 59. Qc6 {[%clk 0:00:19]} 59... Rf1 {[%clk 0:00:32.1]} 60. Nf7+
{[%clk 0:00:19.2]} 60... Rxf7+ {[%clk 0:00:31.5]} 61. Bxf7 {[%clk 0:00:19.3]}
61... Ke7 {[%clk 0:00:32.9]} 62. Ne5 {[%clk 0:00:19.3]} 62... Kd8 {[%clk
0:00:33.1]} 63. Qd7# {[%clk 0:00:20.4]} 1-0

[Event "*** Titled Tuesday 3|2 Blitz"]
[Site "Chess.com"]
[Date "2015.08.04"]
[Round "2"]
[White "Tal-Baronfew"]
[Black "GMBenjaminBok"]
[Result "1-0"]
[WhiteElo "2691"]
[BlackElo "2421"]
[TimeControl "180+2"]
[EndTime "11:51:44 PDT"]
[Termination "Tal-Baronfew won on time"]

1. d4 {[%clk 0:03:01.9]} 1... Nf6 {[%clk 0:02:58.9]} 2. c4 {[%clk 0:03:01]} 2...
g6 {[%clk 0:02:58.5]} 3. Nc3 {[%clk 0:03:01.8]} 3... d5 {[%clk 0:02:59]} 4. Nf3
{[%clk 0:03:02.9]} 4... Bg7 {[%clk 0:02:59.6]} 5. cxd5 {[%clk 0:03:02.6]} 5...
Nxd5 {[%clk 0:03:00]} 6. Bd2 {[%clk 0:03:03.5]} 6... O-O {[%clk 0:02:59.3]} 7.
Rc1 {[%clk 0:03:04.1]} 7... c5 {[%clk 0:02:35.5]} 8. Nxd5 {[%clk 0:03:01.7]}
8... Qxd5 {[%clk 0:02:35.4]} 9. Rxc5 {[%clk 0:03:02.5]} 9... Qxa2 {[%clk
0:02:35.9]} 10. e3 {[%clk 0:03:03.3]} 10... Na6 {[%clk 0:02:18]} 11. Bc4 {[%clk
0:02:43.5]} 11... Qxb2 {[%clk 0:02:03.3]} 12. Rb5 {[%clk 0:02:44]} 12... Qa3
{[%clk 0:02:00.8]} 13. O-O {[%clk 0:02:44]} 13... b6 {[%clk 0:01:50.5]} 14. Qe2
{[%clk 0:02:33.8]} 14... Bb7 {[%clk 0:01:37.8]} 15. Rb3 {[%clk 0:02:18.3]} 15...
Qa4 {[%clk 0:01:31.4]} 16. Rc1 {[%clk 0:02:18.8]} 16... Rac8 {[%clk 0:01:29.7]}
17. Rbb1 {[%clk 0:02:13]} 17... Bxf3 {[%clk 0:01:18.9]} 18. gxf3 {[%clk
0:02:14.5]} 18... Nb8 {[%clk 0:01:19]} 19. f4 {[%clk 0:02:10.5]} 19... Qd7
{[%clk 0:01:10.2]} 20. Qf3 {[%clk 0:02:06]} 20... e6 {[%clk 0:01:09.1]} 21. Kg2
{[%clk 0:02:02.4]} 21... a6 {[%clk 0:01:05.7]} 22. Rxb6 {[%clk 0:02:00.2]} 22...
Rc7 {[%clk 0:00:56.6]} 23. Rbb1 {[%clk 0:01:56.4]} 23... Rfc8 {[%clk 0:00:56.1]}
24. Bd3 {[%clk 0:01:51.8]} 24... Rxc1 {[%clk 0:00:54.3]} 25. Bxc1 {[%clk
0:01:48.7]} 25... a5 {[%clk 0:00:44.2]} 26. Bd2 {[%clk 0:01:49]} 26... a4 {[%clk
0:00:43.7]} 27. Qa8 {[%clk 0:01:32.7]} 27... Nc6 {[%clk 0:00:25.8]} 28. Qxa4
{[%clk 0:01:31.9]} 28... Qd5+ {[%clk 0:00:24.4]} 29. f3 {[%clk 0:01:29.9]} 29...
Ne7 {[%clk 0:00:15.7]} 30. Be4 {[%clk 0:01:31.4]} 30... Qd8 {[%clk 0:00:15.3]}
31. Qa5 {[%clk 0:01:29.9]} 31... Qe8 {[%clk 0:00:14.4]} 32. Qb5 {[%clk
0:01:30.5]} 32... Qd8 {[%clk 0:00:09.8]} 33. Ba5 {[%clk 0:01:31.8]} 33... Qd6
{[%clk 0:00:08.9]} 34. Bb4 {[%clk 0:01:30.3]} 34... Qd8 {[%clk 0:00:09.4]} 35.
Qa5 {[%clk 0:01:27.2]} 35... Qd7 {[%clk 0:00:10.3]} 36. Bc5 {[%clk 0:01:20.2]}
36... Nd5 {[%clk 0:00:08.5]} 37. Qd2 {[%clk 0:01:18.2]} 37... Nf6 {[%clk
0:00:08.4]} 38. Bd3 {[%clk 0:01:11.4]} 38... Bf8 {[%clk 0:00:09.2]} 39. Bxf8
{[%clk 0:01:06.4]} 39... Kxf8 {[%clk 0:00:11.1]} 40. Rc1 {[%clk 0:01:01.5]}
40... Rb8 {[%clk 0:00:10.9]} 41. Rb1 {[%clk 0:01:01.2]} 41... Rc8 {[%clk
0:00:11.7]} 42. Rc1 {[%clk 0:01:02]} 42... Rb8 {[%clk 0:00:12.6]} 43. Rc2 {[%clk
0:01:03.3]} 43... Nd5 {[%clk 0:00:12.5]} 44. Be4 {[%clk 0:01:00]} 44... Nf6
{[%clk 0:00:10.3]} 45. Kf2 {[%clk 0:00:59.4]} 45... Kg7 {[%clk 0:00:10.8]} 46.
Bd3 {[%clk 0:00:57.7]} 46... Rb6 {[%clk 0:00:09.7]} 47. Rb2 {[%clk 0:00:54.6]}
47... Rxb2 {[%clk 0:00:07.3]} 48. Qxb2 {[%clk 0:00:56.2]} 48... Qc7 {[%clk
0:00:08.4]} 49. Qd2 {[%clk 0:00:53.3]} 49... Qc6 {[%clk 0:00:08.6]} 50. Kg2
{[%clk 0:00:53.7]} 50... Qd5 {[%clk 0:00:09.2]} 51. Qc2 {[%clk 0:00:51.7]} 51...
Qd6 {[%clk 0:00:08.9]} 52. h3 {[%clk 0:00:49.9]} 52... Nd5 {[%clk 0:00:08.8]}
53. Qc1 {[%clk 0:00:47.7]} 53... Qb4 {[%clk 0:00:07.7]} 54. Kf2 {[%clk
0:00:48.1]} 54... Qe7 {[%clk 0:00:07.3]} 55. Kg2 {[%clk 0:00:43.9]} 55... g5
{[%clk 0:00:05.7]} 56. Be4 {[%clk 0:00:42.1]} 56... gxf4 {[%clk 0:00:05.6]} 57.
exf4 {[%clk 0:00:42.8]} 1-0

[Event "*** Titled Tuesday 3|2 Blitz"]
[Site "Chess.com"]
[Date "2015.08.04"]
[Round "2"]
[White "MinhGTrAn"]
[Black "Zlatan56"]
[Result "0-1"]
[WhiteElo "2504"]
[BlackElo "2402"]
[TimeControl "180+2"]
[EndTime "11:51:44 PDT"]
[Termination "Zlatan56 won by resignation"]

1. d4 {[%clk 0:03:01.9]} 1... Nf6 {[%clk 0:03:00.2]} 2. c4 {[%clk 0:03:03.5]}
2... g6 {[%clk 0:03:01.3]} 3. Nc3 {[%clk 0:03:04.8]} 3... Bg7 {[%clk 0:03:02.8]}
4. Nf3 {[%clk 0:03:03.9]} 4... O-O {[%clk 0:03:02.8]} 5. Bf4 {[%clk 0:03:05]}
5... c5 {[%clk 0:03:02.9]} 6. d5 {[%clk 0:03:03.9]} 6... d6 {[%clk 0:03:00.3]}
7. e4 {[%clk 0:03:04.5]} 7... b5 {[%clk 0:02:58.3]} 8. cxb5 {[%clk 0:03:03.3]}
8... a6 {[%clk 0:02:59.4]} 9. bxa6 {[%clk 0:03:04.6]} 9... Qa5 {[%clk
0:02:53.8]} 10. Bd3 {[%clk 0:03:01.3]} 10... Bxa6 {[%clk 0:02:50.6]} 11. O-O
{[%clk 0:03:02]} 11... Nbd7 {[%clk 0:02:51.5]} 12. Re1 {[%clk 0:02:50.6]} 12...
Rfb8 {[%clk 0:02:50.1]} 13. Bxa6 {[%clk 0:02:45.5]} 13... Qxa6 {[%clk
0:02:49.2]} 14. Qc2 {[%clk 0:02:44.9]} 14... Ng4 {[%clk 0:02:49.9]} 15. Bg5
{[%clk 0:02:29.6]} 15... Kf8 {[%clk 0:02:43.8]} 16. Qd2 {[%clk 0:02:11.4]} 16...
Nge5 {[%clk 0:02:38.3]} 17. Nxe5 {[%clk 0:02:12.6]} 17... Nxe5 {[%clk
0:02:40.2]} 18. b3 {[%clk 0:02:11.5]} 18... c4 {[%clk 0:02:27.9]} 19. Rab1
{[%clk 0:01:26.7]} 19... cxb3 {[%clk 0:02:24.9]} 20. axb3 {[%clk 0:01:22]} 20...
Qd3 {[%clk 0:02:20.8]} 21. Red1 {[%clk 0:00:38.6]} 21... Qxd2 {[%clk 0:02:06.7]}
22. Bxd2 {[%clk 0:00:40.5]} 22... Ra3 {[%clk 0:02:06]} 23. Kf1 {[%clk
0:00:23.7]} 23... Nd7 {[%clk 0:01:53.2]} 24. f3 {[%clk 0:00:14.5]} 24... f5
{[%clk 0:01:46.7]} 25. exf5 {[%clk 0:00:13.3]} 25... gxf5 {[%clk 0:01:47.1]} 26.
Ne2 {[%clk 0:00:13.4]} 26... Raxb3 {[%clk 0:01:39]} 27. Rxb3 {[%clk 0:00:14.4]}
27... Rxb3 {[%clk 0:01:40.5]} 28. Ng3 {[%clk 0:00:16.3]} 28... Nb6 {[%clk
0:01:25.6]} 29. Nxf5 {[%clk 0:00:16.9]} 29... Nxd5 {[%clk 0:01:15]} 30. Bg5
{[%clk 0:00:18.5]} 30... Nf6 {[%clk 0:01:07.1]} 31. Re1 {[%clk 0:00:12]} 31...
Rb7 {[%clk 0:01:02]} 32. Nxg7 {[%clk 0:00:07.4]} 32... Kxg7 {[%clk 0:01:02.6]}
33. Re2 {[%clk 0:00:09.1]} 33... Kg6 {[%clk 0:01:02.4]} 34. Be3 {[%clk
0:00:09.2]} 34... e5 {[%clk 0:00:59.6]} 35. Kf2 {[%clk 0:00:09.1]} 35... h5
{[%clk 0:00:56.3]} 36. Rc2 {[%clk 0:00:10.2]} 36... d5 {[%clk 0:00:53.8]} 37. h4
{[%clk 0:00:09.7]} 37... Kf5 {[%clk 0:00:36]} 38. Bg5 {[%clk 0:00:10.8]} 38...
d4 {[%clk 0:00:30.9]} 39. Rc6 {[%clk 0:00:07.1]} 39... Nd5 {[%clk 0:00:29.4]}
40. Rd6 {[%clk 0:00:08.2]} 40... Rb5 {[%clk 0:00:30.3]} 41. Rh6 {[%clk
0:00:06.3]} 41... e4 {[%clk 0:00:29.8]} 42. fxe4+ {[%clk 0:00:06]} 42... Kxe4
{[%clk 0:00:30.7]} 43. Rxh5 {[%clk 0:00:07.6]} 43... Rb2+ {[%clk 0:00:30.9]} 44.
Kg3 {[%clk 0:00:08.4]} 44... Ne3 {[%clk 0:00:18.2]} 45. Bxe3 {[%clk 0:00:08.4]}
45... dxe3 {[%clk 0:00:19.8]} 46. Rh8 {[%clk 0:00:09.5]} 46... Rb1 {[%clk
0:00:19]} 47. Re8+ {[%clk 0:00:10.5]} 47... Kd3 {[%clk 0:00:20]} 48. Kf4 {[%clk
0:00:06.2]} 48... Rf1+ {[%clk 0:00:19.3]} 49. Kg5 {[%clk 0:00:06.8]} 49... e2
{[%clk 0:00:20.5]} 50. g4 {[%clk 0:00:08.3]} 50... e1=Q {[%clk 0:00:21.2]} 51.
Rxe1 {[%clk 0:00:10.2]} 51... Rxe1 {[%clk 0:00:22.3]} 52. h5 {[%clk 0:00:11.5]}
52... Ke4 {[%clk 0:00:21.3]} 53. Kf6 {[%clk 0:00:13]} 53... Rf1+ {[%clk
0:00:18.4]} 54. Kg7 {[%clk 0:00:11.4]} 54... Rg1 {[%clk 0:00:19.1]} 55. h6
{[%clk 0:00:13]} 55... Rxg4+ {[%clk 0:00:20.7]} 56. Kf7 {[%clk 0:00:14.5]} 56...
Rh4 {[%clk 0:00:20.1]} 57. h7 {[%clk 0:00:16.1]} 57... Rxh7+ {[%clk 0:00:20.5]}
0-1

[Event "*** Titled Tuesday 3|2 Blitz"]
[Site "Chess.com"]
[Date "2015.08.04"]
[Round "2"]
[White "DanielNaroditsky"]
[Black "yurisolo"]
[Result "1/2-1/2"]
[WhiteElo "2538"]
[BlackElo "2403"]
[TimeControl "180+2"]
[EndTime "11:52:06 PDT"]
[Termination "Game drawn by agreement"]

1. d4 {[%clk 0:03:01.9]} 1... d5 {[%clk 0:03:00.7]} 2. c4 {[%clk 0:03:03.3]}
2... c6 {[%clk 0:03:02]} 3. e3 {[%clk 0:03:03.3]} 3... Nf6 {[%clk 0:03:02.8]} 4.
Bd3 {[%clk 0:03:04.1]} 4... e6 {[%clk 0:03:02.3]} 5. Nf3 {[%clk 0:03:04.3]} 5...
dxc4 {[%clk 0:02:59.1]} 6. Bxc4 {[%clk 0:03:05.3]} 6... Nbd7 {[%clk 0:02:59.9]}
7. O-O {[%clk 0:03:05.1]} 7... b5 {[%clk 0:02:58.7]} 8. Bd3 {[%clk 0:03:06.3]}
8... Bd6 {[%clk 0:02:56.9]} 9. a4 {[%clk 0:03:03.7]} 9... bxa4 {[%clk
0:02:55.3]} 10. Qxa4 {[%clk 0:02:39.1]} 10... c5 {[%clk 0:02:44.4]} 11. dxc5
{[%clk 0:02:37.9]} 11... Bxc5 {[%clk 0:02:44.4]} 12. b4 {[%clk 0:02:15.1]} 12...
Bb6 {[%clk 0:02:40.5]} 13. Bb2 {[%clk 0:02:14.5]} 13... O-O {[%clk 0:02:37.1]}
14. Qc2 {[%clk 0:02:12.2]} 14... Bb7 {[%clk 0:02:36.5]} 15. Nbd2 {[%clk
0:02:13.7]} 15... Rc8 {[%clk 0:02:35.7]} 16. Qb1 {[%clk 0:02:14.9]} 16... Qe7
{[%clk 0:02:30.7]} 17. Bd4 {[%clk 0:02:10.3]} 17... Rfd8 {[%clk 0:02:25.6]} 18.
Qb2 {[%clk 0:01:58.2]} 18... e5 {[%clk 0:02:03.5]} 19. Bxb6 {[%clk 0:01:58.7]}
19... axb6 {[%clk 0:01:58.2]} 20. Ra7 {[%clk 0:01:45.4]} 20... Bxf3 {[%clk
0:01:53.1]} 21. gxf3 {[%clk 0:01:44.1]} 21... Qe6 {[%clk 0:01:40.3]} 22. Qb1
{[%clk 0:01:29.6]} 22... g6 {[%clk 0:01:39.6]} 23. Qb3 {[%clk 0:01:18.1]} 23...
Qxb3 {[%clk 0:01:15.3]} 24. Nxb3 {[%clk 0:01:19.1]} 24... Nb8 {[%clk 0:01:13]}
25. Bb5 {[%clk 0:01:12.3]} 25... Nd5 {[%clk 0:01:12.6]} 26. Rd1 {[%clk
0:01:05.6]} 26... Nxb4 {[%clk 0:01:02]} 27. Rxd8+ {[%clk 0:01:06.5]} 27... Rxd8
{[%clk 0:01:03.9]} 28. Rb7 {[%clk 0:01:08.2]} 28... Nd5 {[%clk 0:00:53.7]} 29.
Nd2 {[%clk 0:00:43.7]} 29... Nc3 {[%clk 0:00:43.5]} 30. Bc4 {[%clk 0:00:44.8]}
30... Nd7 {[%clk 0:00:44.8]} 31. Nb3 {[%clk 0:00:38]} 31... Kf8 {[%clk
0:00:41.5]} 32. Rc7 {[%clk 0:00:34.6]} 32... Na4 {[%clk 0:00:40.7]} 33. Bb5
{[%clk 0:00:32.9]} 33... Nac5 {[%clk 0:00:41.6]} 34. Nd2 {[%clk 0:00:34.3]}
34... Ke7 {[%clk 0:00:28.8]} 35. Nc4 {[%clk 0:00:35.5]} 35... Ke6 {[%clk
0:00:30.2]} 36. Rc6+ {[%clk 0:00:34.6]} 36... Ke7 {[%clk 0:00:31.6]} 37. Rc7
{[%clk 0:00:36]} 37... Ke6 {[%clk 0:00:32.6]} 38. Rc6+ {[%clk 0:00:36.4]} 38...
Ke7 {[%clk 0:00:33.9]} 39. Nxb6 {[%clk 0:00:34.1]} 39... Nxb6 {[%clk 0:00:33.3]}
40. Rxb6 {[%clk 0:00:34.3]} 40... Rd6 {[%clk 0:00:21.5]} 41. Rb8 {[%clk
0:00:30.4]} 41... Rd8 {[%clk 0:00:13.3]} 42. Rb6 {[%clk 0:00:31.4]} 42... Rd6
{[%clk 0:00:09.2]} 43. Rb8 {[%clk 0:00:28.9]} 43... Rd8 {[%clk 0:00:09.8]} 44.
Rxd8 {[%clk 0:00:30.5]} 44... Kxd8 {[%clk 0:00:10.4]} 45. Bc4 {[%clk 0:00:31.8]}
45... Ke7 {[%clk 0:00:11.4]} 46. Kf1 {[%clk 0:00:32.8]} 46... Kf6 {[%clk
0:00:12.2]} 47. h4 {[%clk 0:00:30.7]} 47... h5 {[%clk 0:00:12.3]} 48. Kg2 {[%clk
0:00:30]} 48... Nb7 {[%clk 0:00:13.1]} 49. Bd5 {[%clk 0:00:30.2]} 49... Nd6
{[%clk 0:00:14.1]} 50. e4 {[%clk 0:00:30]} 50... Nb5 {[%clk 0:00:14.2]} 51. f4
{[%clk 0:00:23]} 51... exf4 {[%clk 0:00:11.5]} 52. Kf3 {[%clk 0:00:24.6]} 52...
g5 {[%clk 0:00:10.1]} 53. hxg5+ {[%clk 0:00:22.9]} 53... Kxg5 {[%clk 0:00:12]}
54. Bxf7 {[%clk 0:00:24.3]} 54... Nd4+ {[%clk 0:00:11.4]} 55. Kg2 {[%clk
0:00:24.6]} 55... f3+ {[%clk 0:00:10.4]} 56. Kh3 {[%clk 0:00:22.5]} 56... Kf4
{[%clk 0:00:10.9]} 57. Bxh5 {[%clk 0:00:16.7]} 57... Kxe4 {[%clk 0:00:12]} 58.
Bxf3+ {[%clk 0:00:14.3]} 58... Kxf3 {[%clk 0:00:12.7]} 1/2-1/2

[Event "*** Titled Tuesday 3|2 Blitz"]
[Site "Chess.com"]
[Date "2015.08.04"]
[Round "2"]
[White "Tobi-Wan-Kenobi"]
[Black "myaccount88"]
[Result "1-0"]
[WhiteElo "2262"]
[BlackElo "2174"]
[TimeControl "180+2"]
[EndTime "11:52:17 PDT"]
[Termination "Tobi-Wan-Kenobi won by checkmate"]

1. d4 {[%clk 0:03:01.9]} 1... Nf6 {[%clk 0:03:00.4]} 2. c4 {[%clk 0:03:02.6]}
2... g6 {[%clk 0:02:56.3]} 3. Nf3 {[%clk 0:02:58.8]} 3... Bg7 {[%clk 0:02:56.9]}
4. Nc3 {[%clk 0:02:58.4]} 4... d6 {[%clk 0:02:55.8]} 5. e4 {[%clk 0:02:58.6]}
5... O-O {[%clk 0:02:55.5]} 6. Be2 {[%clk 0:03:00]} 6... Nbd7 {[%clk 0:02:54.3]}
7. Be3 {[%clk 0:02:58.4]} 7... c6 {[%clk 0:02:53.3]} 8. O-O {[%clk 0:02:58.1]}
8... a6 {[%clk 0:02:51.1]} 9. d5 {[%clk 0:02:48.4]} 9... Ng4 {[%clk 0:02:44.6]}
10. Bd4 {[%clk 0:02:46.2]} 10... Ngf6 {[%clk 0:02:38.9]} 11. h3 {[%clk 0:02:40]}
11... Rb8 {[%clk 0:02:38.4]} 12. Ba7 {[%clk 0:02:37.8]} 12... Ra8 {[%clk
0:02:38.9]} 13. Bd4 {[%clk 0:02:39.4]} 13... Rb8 {[%clk 0:02:39.9]} 14. a4
{[%clk 0:02:36.4]} 14... Qc7 {[%clk 0:02:16]} 15. Re1 {[%clk 0:02:27.6]} 15...
e5 {[%clk 0:02:06.8]} 16. dxe6 {[%clk 0:02:07.4]} 16... fxe6 {[%clk 0:02:06.9]}
17. Qd2 {[%clk 0:02:05.6]} 17... e5 {[%clk 0:02:01.9]} 18. Ba7 {[%clk
0:02:04.6]} 18... Ra8 {[%clk 0:02:00.8]} 19. Be3 {[%clk 0:02:05.1]} 19... Re8
{[%clk 0:01:51.3]} 20. Red1 {[%clk 0:02:01.9]} 20... Bf8 {[%clk 0:01:46.3]} 21.
a5 {[%clk 0:01:56.3]} 21... Nc5 {[%clk 0:01:44.1]} 22. Qc2 {[%clk 0:01:55.6]}
22... Be6 {[%clk 0:01:37.2]} 23. b4 {[%clk 0:01:47.8]} 23... Ncd7 {[%clk
0:01:37.8]} 24. Ng5 {[%clk 0:01:48.4]} 24... Kg7 {[%clk 0:01:29.5]} 25. Nxe6+
{[%clk 0:01:47.1]} 25... Rxe6 {[%clk 0:01:30.4]} 26. Na4 {[%clk 0:01:41.6]}
26... Kh8 {[%clk 0:00:53.3]} 27. Rab1 {[%clk 0:01:29.4]} 27... Bg7 {[%clk
0:00:48.7]} 28. Qd3 {[%clk 0:01:21.7]} 28... Rf8 {[%clk 0:00:42.9]} 29. Nb6
{[%clk 0:00:58.4]} 29... Nxb6 {[%clk 0:00:27.3]} 30. Bxb6 {[%clk 0:00:56.6]}
30... Qf7 {[%clk 0:00:28.1]} 31. Be3 {[%clk 0:00:52.8]} 31... Rd8 {[%clk
0:00:25.9]} 32. b5 {[%clk 0:00:50.3]} 32... Ree8 {[%clk 0:00:22]} 33. bxc6
{[%clk 0:00:42.7]} 33... bxc6 {[%clk 0:00:23.2]} 34. Qc2 {[%clk 0:00:38]} 34...
d5 {[%clk 0:00:23.2]} 35. cxd5 {[%clk 0:00:38]} 35... cxd5 {[%clk 0:00:24.3]}
36. Bxa6 {[%clk 0:00:25.1]} 36... Nxe4 {[%clk 0:00:19.3]} 37. Bb7 {[%clk
0:00:23]} 37... Nf6 {[%clk 0:00:18.1]} 38. a6 {[%clk 0:00:22.9]} 38... d4 {[%clk
0:00:19.3]} 39. Bg5 {[%clk 0:00:23.4]} 39... h6 {[%clk 0:00:15.9]} 40. Bxf6
{[%clk 0:00:23.9]} 40... Qxf6 {[%clk 0:00:16.9]} 41. a7 {[%clk 0:00:23.9]} 41...
Qf7 {[%clk 0:00:16.3]} 42. Qe4 {[%clk 0:00:20.5]} 42... Kh7 {[%clk 0:00:16.7]}
43. a8=Q {[%clk 0:00:20.8]} 43... Rxa8 {[%clk 0:00:17.8]} 44. Bxa8 {[%clk
0:00:22.7]} 44... Rf8 {[%clk 0:00:18.2]} 45. Rf1 {[%clk 0:00:23.3]} 45... Qf5
{[%clk 0:00:18.6]} 46. Qxf5 {[%clk 0:00:23.1]} 46... gxf5 {[%clk 0:00:20.2]} 47.
Bd5 {[%clk 0:00:23.9]} 47... Rd8 {[%clk 0:00:20.4]} 48. Be6 {[%clk 0:00:24.4]}
48... Kg6 {[%clk 0:00:21]} 49. g4 {[%clk 0:00:25.5]} 49... fxg4 {[%clk
0:00:21.5]} 50. hxg4 {[%clk 0:00:27.4]} 50... Bf6 {[%clk 0:00:22.1]} 51. Bf5+
{[%clk 0:00:28.3]} 51... Kg5 {[%clk 0:00:23.5]} 52. Kg2 {[%clk 0:00:28.4]} 52...
h5 {[%clk 0:00:24.8]} 53. f3 {[%clk 0:00:28.7]} 53... hxg4 {[%clk 0:00:23.8]}
54. fxg4 {[%clk 0:00:30.6]} 54... Ra8 {[%clk 0:00:23.7]} 55. Rb2 {[%clk
0:00:28.2]} 55... Ra3 {[%clk 0:00:23.9]} 56. Rf3 {[%clk 0:00:27.5]} 56... Ra1
{[%clk 0:00:23.6]} 57. Rbf2 {[%clk 0:00:26.2]} 57... Bd8 {[%clk 0:00:23.2]} 58.
Rh3 {[%clk 0:00:26.7]} 58... Kf6 {[%clk 0:00:18]} 59. Be4+ {[%clk 0:00:26.9]}
59... Ke7 {[%clk 0:00:17.1]} 60. Rh7+ {[%clk 0:00:26.9]} 60... Kd6 {[%clk
0:00:18.3]} 61. Rh6+ {[%clk 0:00:24.3]} 61... Ke7 {[%clk 0:00:16.2]} 62. g5
{[%clk 0:00:24.4]} 62... Ba5 {[%clk 0:00:14.6]} 63. g6 {[%clk 0:00:23.4]} 63...
Be1 {[%clk 0:00:14.2]} 64. Rf7+ {[%clk 0:00:18.9]} 64... Ke8 {[%clk 0:00:14.2]}
65. Rh8# {[%clk 0:00:19.4]} 1-0